Cogmind - Beta 13 *** ADVENTURER MODE // 2024.04.02 @ 08:34:02 Player: BlakeOblivion Result: Destroyed by S-27 Virus with Autogun Performance ------------- Evolutions (1) 500 Regions Visited (5) 1000 Robots Destroyed (10) 50 Value Destroyed (271) 271 Prototype IDs (0) 0 Alien Tech Used (0) 0 Bonus (761) 761 TOTAL SCORE: 2582 Bonus ------- Follower Combat Kills 161 Met Imprinter 300 Was Imprinted 300 Cogmind --------- Core Integrity 0/400 Matter 300/300 Energy 100/100 System Corruption 0% Temperature Cool (0) Movement Core (50) Location -6/Proximity Caves Parts ------- > --- POWER (2) -------- (None) > --- PROPULSION (2) --- (None) > --- UTILITY (3) ------ Structural Scanner Signal Interpreter > --- WEAPON (2) ------- (None) > --- INVENTORY (5) ---- Heat Sink Compact Matter Pod (150) Makeshift System Shield Advanced Assault Cannon Peak State ------------ > --- POWER ------------ Light Ion Engine Improved Deuterium Engine > --- PROPULSION ------- Flight Unit Flight Unit > --- UTILITY ---------- Structural Scanner Sensor Array Tractor Beam > --- WEAPON ----------- Light Assault Rifle > --- INVENTORY -------- Compact Matter Pod Signal Interpreter Makeshift System Shield Advanced Assault Cannon [Rating: 12] Favorites ----------- Power Light Ion Engine Engine Light Ion Engine Propulsion Flight Unit Wheel Wheel Hover Unit Hover Unit Flight Unit Flight Unit Utility Structural Scanner Device Structural Scanner Storage Small Storage Unit Processor Signal Interpreter Weapon Light Assault Rifle Energy Gun EM Pulse Gun Ballistic Gun Light Assault Rifle Build | -11 -10 -9 -9 -7 -6 ------- Run | Yrd Mat Mat Min Zio Pro Slots Evolved 2 | . . 2 . . . Power 1 | . . 1 . . . Propulsion . | . . . . . . Utility 1 | . . 1 . . . Weapon . | . . . . . . Parts Attached 24 | 6 14 2 . . 2 Power 5 | 1 3 . . . 1 Engine 5 | 1 3 . . . 1 Core . | . . . . . . Reactor . | . . . . . . Propulsion 8 | 2 6 . . . . Treads . | . . . . . . Leg . | . . . . . . Wheel 2 | 2 . . . . . Hover 2 | . 2 . . . . Flight 4 | . 4 . . . . Utility 6 | . 3 2 . . 1 Device 3 | . 1 2 . . . Storage 1 | . 1 . . . . Processor 2 | . 1 . . . 1 Hackware . | . . . . . . Protection . | . . . . . . Artifact . | . . . . . . Weapon 5 | 3 2 . . . . Energy Gun 2 | 1 1 . . . . Energy Cannon . | . . . . . . Ballistic Gun 3 | 2 1 . . . . Ballistic Cannon . | . . . . . . Launcher . | . . . . . . Special Weapon . | . . . . . . Impact Weapon . | . . . . . . Slashing Weapon . | . . . . . . Piercing Weapon . | . . . . . . Special Melee Weapon . | . . . . . . Unidentified Prototypes . | . . . . . . Parts Lost 11 | . 5 . . . 6 Power 3 | . 2 . . . 1 Propulsion 3 | . 1 . . . 2 Utility 2 | . . . . . 2 Weapon 3 | . 2 . . . 1 Highest Loss Streak 5 | . 5 . . . 3 To Critical Strikes . | . . . . . . Average Slot Usage (%) 70 | . 55 77 77 77 62 Engine 9 | . 11 11 11 11 5 Hover 1 | . 11 . . . . Flight 18 | . 7 22 22 22 15 Device 27 | . . 31 33 33 26 Processor 1 | . 1 1 . . 4 Ballistic Gun 11 | . 14 11 11 11 10 Naked Turns . | . . . . . . Heaviest Build 9 | 7 9 7 7 7 7 Greatest Support 20 | 20 20 8 8 8 8 Greatest Overweight (x) 1 | . 1 . . . . Average Overweight (x) . | . . . . . . Largest Inventory Capacity 8 | 5 8 5 5 5 5 Average Capacity 5 | 5 5 5 5 5 5 Most Carried 5 | 2 5 3 2 5 5 Average Carried 3 | . 3 2 2 4 4 Final Capacity 5 | 5 5 5 5 5 5 Final Carried 5 | 2 3 2 2 5 4 Class Distribution -------------------- 73% | Scavenger-Mutant 26% | Mutant Dominant Class ---------------- Mutant | -10/Materials Scavenger-Mutant | -9/Materials Scavenger-Mutant | -9/Mines Scavenger-Mutant | -7/Zion Mutant | -6/Proximity Caves Resources | -11 -10 -9 -9 -7 -6 ----------- Run | Yrd Mat Mat Min Zio Pro Matter Collected 658 | 269 156 . 40 58 135 Remotely 233 | . . . 40 58 135 Salvage Created 339 | 50 163 . . . 126 Parts 21 | 2 13 . . . 6 Haulers Intercepted . | . . . . . . Recyclers Shooed . | . . . . . . Parts Field Recycled . | . . . . . . Retrieved Matter . | . . . . . . Parts Self-Destructed 11 | . . . . . 11 Prevented 1 | . . . . . 1 Kills | -11 -10 -9 -9 -7 -6 ------- Run | Yrd Mat Mat Min Zio Pro Combat Hostiles Destroyed 9 | 1 6 . . . 2 Guns 9 | 1 6 . . . 2 Classes Destroyed 3 | 1 2 . . . . Watcher 1 | . 1 . . . . Swarmer 4 | . 4 . . . . Grunt 5 | 1 2 . . . 2 Best Kill Streak 6 | 1 6 . . . 1 Combat Bots Only 6 | 1 6 . . . 1 Max Kills in Single Turn 1 | 1 1 . . . 1 Gunslinging . | . . . . . . Exploded . | . . . . . . Melee . | . . . . . . Uniques/NPCs Destroyed . | . . . . . . Combat | -11 -10 -9 -9 -7 -6 -------- Run | Yrd Mat Mat Min Zio Pro Hostile Shots Fired 149 | 4 83 2 . . 60 Missed 52 | 1 33 2 . . 16 Damage Taken 1048 | 25 398 . . . 625 Core 545 | 16 123 . . . 406 Absorbed by Shields . | . . . . . . Ignored by Resistances 301 | 8 124 . . . 169 Core Remaining (%) 68 | 93 44 . . . . Volleys Fired 62 | 3 29 . . 1 29 Largest 2 | 2 2 . . 1 1 Hottest 60 | 60 60 . . 20 20 Shots Fired 72 | 6 36 . . 1 29 Gun 72 | 6 36 . . 1 29 Cannon . | . . . . . . Launcher . | . . . . . . Special . | . . . . . . Kinetic 62 | 3 29 . . 1 29 Thermal . | . . . . . . Explosive . | . . . . . . Electromagnetic 10 | 3 7 . . . . Robot Hit Streak 21 | 3 12 . . . 21 Robot Miss Streak 2 | 2 2 . . . 1 Penetration Max . | . . . . . . Secondary Targets . | . . . . . . Shots Hit Robots 58 | 3 29 . . . 26 Core Hits 28 | 1 13 . . . 14 Critical Kills . | . . . . . . Critical Parts Destroyed . | . . . . . . Critical Strikes . | . . . . . . Melee Attacks . | . . . . . . Impact . | . . . . . . Slashing . | . . . . . . Piercing . | . . . . . . Sneak Attacks . | . . . . . . Combat Hostiles . | . . . . . . Follow-up Attacks . | . . . . . . Damage Inflicted 569 | 40 314 . . . 215 Guns 569 | 40 314 . . . 215 Cannons . | . . . . . . Explosions . | . . . . . . Melee . | . . . . . . Ramming . | . . . . . . Kinetic 485 | 12 258 . . . 215 Thermal . | . . . . . . Explosive . | . . . . . . Electromagnetic 84 | 28 56 . . . . Impact . | . . . . . . Slashing . | . . . . . . Piercing . | . . . . . . Highest Corruption . | . . . . . . Average Corruption . | . . . . . . Corruption Purged . | . . . . . . Corruption Blocked . | . . . . . . Overload Shots . | . . . . . . Overflow Damage . | . . . . . . Projectiles . | . . . . . . Explosions . | . . . . . . Melee . | . . . . . . Knockbacks . | . . . . . . Impact . | . . . . . . Kinetic . | . . . . . . Secondary . | . . . . . . Self-Inflicted Damage . | . . . . . . Shots . | . . . . . . Rammed . | . . . . . . Targets Rammed . | . . . . . . Kicked . | . . . . . . Crushed . | . . . . . . Highest Temperature 95 | 12 95 . . 1 28 Average Temperature 27 | 9 40 . . 1 9 Received Heat Transfer 555 | 18 168 . . . 369 Siege Activations . | . . . . . . Robots Corrupted . | . . . . . . Combat Hostiles . | . . . . . . Parts Fried . | . . . . . . Impact Corruptions . | . . . . . . Robots Melted . | . . . . . . Combat Hostiles . | . . . . . . Parts Melted . | . . . . . . Heat Transferred . | . . . . . . Parts Sabotaged . | . . . . . . Parts Stolen . | . . . . . . Parts Stripped . | . . . . . . Power Chain Reactions . | . . . . . . Alert | -11 -10 -9 -9 -7 -6 ------- Run | Yrd Mat Mat Min Zio Pro Peak Influence 133 | 20 133 77 25 . . Initial 47 | . 11 47 25 . . Average 44 | 1 60 66 25 . . Maximum Alert Level . | . . . . . . Low Security (%) 100 | 100 100 100 100 . . Level 1 . | . . . . . . Level 2 . | . . . . . . Level 3 . | . . . . . . Level 4 . | . . . . . . Level 5 . | . . . . . . High Security . | . . . . . . Max Security . | . . . . . . Squads Dispatched . | . . . . . . Investigation . | . . . . . . Extermination . | . . . . . . Reinforcement . | . . . . . . Assault . | . . . . . . Garrison . | . . . . . . Intercept . | . . . . . . Searches Triggered . | . . . . . . Construction Impeded . | . . . . . . Haulers Reinforced . | . . . . . . Active Scanning Responses . | . . . . . . Cargo Convoy Interrupts . | . . . . . . Stealth | -11 -10 -9 -9 -7 -6 --------- Run | Yrd Mat Mat Min Zio Pro Distress Signals . | . . . . . . Communications Jammed . | . . . . . . Distress Signals . | . . . . . . Times Spotted 21 | 1 10 1 . . 9 Peak Tracking Total 7 | 1 7 1 . . 7 Tactical Retreats 1 | . 1 . . . . Traps | -11 -10 -9 -9 -7 -6 ------- Run | Yrd Mat Mat Min Zio Pro Traps Triggered . | . . . . . . Indirectly . | . . . . . . Trap Hack Attempts . | . . . . . . Triggered . | . . . . . . Disarmed . | . . . . . . Reprogrammed . | . . . . . . Reused . | . . . . . . Traps Extracted . | . . . . . . Installed . | . . . . . . Triggered . | . . . . . . Machines | -11 -10 -9 -9 -7 -6 ---------- Run | Yrd Mat Mat Min Zio Pro Machines Disabled . | . . . . . . Max in Single Turn . | . . . . . . Machines Repaired . | . . . . . . Machines Dismantled . | . . . . . . Machines Sabotaged . | . . . . . . Overloaded Fab Kills . | . . . . . . Hacking | -11 -10 -9 -9 -7 -6 --------- Run | Yrd Mat Mat Min Zio Pro Machines Accessed . | . . . . . . Terminals . | . . . . . . Fabricators . | . . . . . . Repair Stations . | . . . . . . Recycling Units . | . . . . . . Scanalyzers . | . . . . . . Garrison Access . | . . . . . . Total Hacks . | . . . . . . Successful . | . . . . . . Failed . | . . . . . . Catastrophic . | . . . . . . Database Lockouts . | . . . . . . Manual 4 | . . . . 4 . Terminals . | . . . . . . Fabricators . | . . . . . . Repair Stations . | . . . . . . Recycling Units . | . . . . . . Scanalyzers . | . . . . . . Garrison Access . | . . . . . . Terminal Hacks . | . . . . . . Fabricator Hacks . | . . . . . . Repair Station Hacks . | . . . . . . Recycling Unit Hacks . | . . . . . . Scanalyzer . | . . . . . . Garrison Access Hacks . | . . . . . . Unauthorized Hacks . | . . . . . . Terminals . | . . . . . . Fabricators . | . . . . . . Repair Stations . | . . . . . . Recycling Units . | . . . . . . Scanalyzers . | . . . . . . Garrison Access . | . . . . . . Data Cores Recovered . | . . . . . . Used . | . . . . . . Hacking Detections . | . . . . . . Full Trace Events . | . . . . . . Feedback Events . | . . . . . . Feedback Blocked . | . . . . . . Robot Schematics Acquired . | . . . . . . Robots Built . | . . . . . . Authchips . | . . . . . . Time . | . . . . . . Total Robot Build Rating . | . . . . . . Part Schematics Acquired 1 | . . . . 1 . Parts Built . | . . . . . . Authchips . | . . . . . . Time . | . . . . . . Total Part Build Rating . | . . . . . . Parts Repaired . | . . . . . . Time . | . . . . . . Parts Recycled . | . . . . . . Recycled Matter . | . . . . . . Retrieved Matter . | . . . . . . Retrieved Components . | . . . . . . Parts Scanalyzed . | . . . . . . Part Schematics Acquired . | . . . . . . Parts Damaged . | . . . . . . Bothacking | -11 -10 -9 -9 -7 -6 ------------ Run | Yrd Mat Mat Min Zio Pro Used RIF Installer . | . . . . . . Robots Hacked . | . . . . . . Non-combat . | . . . . . . Combat . | . . . . . . Robot Hacks Applied . | . . . . . . Relay Couplers Released . | . . . . . . Fabnet Peak Effective % . | . . . . . . Robots Rewired . | . . . . . . Allies Hacked . | . . . . . . Hacks Repelled . | . . . . . . Allies | -11 -10 -9 -9 -7 -6 -------- Run | Yrd Mat Mat Min Zio Pro Total Allies 4 | . . . . 4 . Largest Group 4 | . . . . 4 4 Highest-Rated Group 151 | . . . . 151 151 Highest-Rated Ally 40 | . . . . 40 40 Total Orders . | . . . . . . Ally Attacks 19 | . . . . . 19 Total Damage 460 | . . . . . 460 Kills 4 | . . . . . 4 Allies Corrupted . | . . . . . . Allies Melted . | . . . . . . Intel | -11 -10 -9 -9 -7 -6 ------- Run | Yrd Mat Mat Min Zio Pro Robot Analysis Total . | . . . . . . Derelict Logs Recovered 2 | . . . 1 1 . Drone Launches . | . . . . . . Drone Recoveries . | . . . . . . Exploration | -11 -10 -9 -9 -7 -6 ------------- Run | Yrd Mat Mat Min Zio Pro Turns Passed 1534 | 97 185 79 31 812 330 Spaces Moved 2323 | 96 170 98 83 1454 422 Core 50 | 22 . . . . 28 Treads . | . . . . . . Legs . | . . . . . . Wheels 97 | 74 23 . . . . Hover 57 | . 57 . . . . Flight 2119 | . 90 98 83 1454 394 Fastest Speed 32 | 50 32 37 37 37 37 Average Speed 39 | 73 50 37 37 37 39 Slowest Speed 112 | 80 112 37 37 37 50 Overloaded Moves . | . . . . . . Propulsion Burnouts . | . . . . . . Robots Hopped . | . . . . . . Cave-ins Triggered . | . . . . . . Exploration Rate (%) 34 | 5 30 7 37 86 40 Regions Visited 5 Branch Regions 3 Pre-discovered Areas 1 | . . . . 1 . Known Exits Taken . | . . . . . . Unknown Exits Taken 5 | 1 1 1 1 1 . Scrap Searched 4 | . . . 1 2 1 Spaces Dug . | . . . . . . Terrain Destroyed . | . . . . . . Melee . | . . . . . . Projectile . | . . . . . . AOE . | . . . . . . Terrain Rammed . | . . . . . . Walls Destroyed . | . . . . . . Machines Disabled . | . . . . . . Actions | -11 -10 -9 -9 -7 -6 --------- Run | Yrd Mat Mat Min Zio Pro Total 2864 | 117 237 140 82 1726 562 Wait 419 | 5 1 39 . 269 105 Move 2318 | 95 169 97 82 1453 422 Hop . | . . . . . . Pick Up 27 | 7 14 1 . 3 2 Fast Attach . | . . . . . . Attach 20 | 6 10 2 . . 2 Detach 5 | 1 3 1 . . . Swap 4 | . 4 . . . . Drop 9 | . 7 . . . 2 Fire 62 | 3 29 . . 1 29 Melee . | . . . . . . Ram . | . . . . . . Kick . | . . . . . . Crush . | . . . . . . Escape Stasis . | . . . . . . Rewire . | . . . . . . Trap . | . . . . . . Miscellaneous . | . . . . . . Route ------- -11/Scrapyard -10/Materials -9/Materials -9/Mines -7/Zion -6/Proximity Caves History --------- Turn | Location | Event 2 | -11/Scrapyard | Met Revision 17 77 | -11/Scrapyard | Discovered new exit (range 8) 98 | -11/Scrapyard | Entered Materials 218 | -10/Materials | Core integrity fell below 50% 256 | -10/Materials | Lost 5 parts (2p1n2w) 280 | -10/Materials | Discovered new exit (range 7) 283 | -10/Materials | Entered another Materials area 283 | -9/Materials | Evolved 2 slots: Power x1, Utility x1 299 | -9/Materials | Discovered new exit (range 7) 362 | -9/Materials | Entered Mines 385 | -9/Mines | Learned Materials security intel 390 | -9/Mines | A Derelict revealed a hidden shortcut to a safe place 393 | -9/Mines | Entered Zion 481 | -7/Zion | Learned location of 1 exit from Factory 486 | -7/Zion | Learned location of Data Miner (-6) 540 | -7/Zion | Build established: Scavenger-Mutant 604 | -7/Zion | Imprinted 606 | -7/Zion | Declared Zion's savior 667 | -7/Zion | Received a visual enhancement algorithm 1167 | -7/Zion | Discovered new exit (range 15) 1205 | -7/Zion | Entered Proximity Caves 1205 | -6/Proximity Caves | Accompanied by 4 allies 1380 | -6/Proximity Caves | Lost 3 allies 1408 | -6/Proximity Caves | Lost 3 parts (1p1n1u) 1512 | -6/Proximity Caves | Core integrity fell below 50% 1529 | -6/Proximity Caves | Core integrity fell below 20% 1535 | -6/Proximity Caves | Destroyed by S-27 Virus with Autogun Last Messages --------------- 01362_ Acquired 1 matter. 01362_ Carbon-fiber Leg fries itself beyond repair. 01363_ Flight Unit destroyed. 01365_ Critical hit (Burn: +37). 01366_ Acquired 1 matter. 01366_ Hvy. Laser fries itself beyond repair. 01367_ Acquired 1 matter. 01374_ Adv. Heat Sink fries itself beyond repair. 01375_ Acquired 1 matter. 01377_ Lgt. Ion Engine destroyed. 01379_ G-50 Soldier destroyed. 01380_ Acquired 1 matter. 01383_ Acquired Heat Sink. 01404_ Acquired 10 matter. 01505_ Flight Unit destroyed. 01512_ Tractor Beam destroyed. 01513_ Lgt. Assault Rifle destroyed. 01513_ Critical hit (Burn: +37). Map ----- +----------------------------------------------------+ | ?????????????????????????????????????????????????? | | ?????????????????????????????????????????????????? | | ?????????????????????????????????????????????????? | | ?????????????????????????????????????????????????? | | ?????????????????????????????????????????????????? | | ?????????????????????????????????????????????????? | | ?????????????????????????????????????????????????? | | ?????????????????????????????????????????????????? | | ?????????????????????????????????????????????????? | | ?????????????????????????????????????????????????? | | ?????????????????????????????????????????????????? | | ????????????????????????####?????????????????????? | | ????????????????????????#####????????????????????? | | ??????????????????????? ##????????????????????? | | ???????????????????????## ####??????????????????? | | ???????????????????????## ####???### ???????????? | | ??????????????????????### ##???### ???????????? | | ????????????????????##### ##??? ##???????????? | | ???????????????????##### ### ##???????????? | | ??????????????######## #### ???????????????? | | ?????????????######## ## ????????????????? | | ?????????????### s ??????????????????? | | ?????????????## ss ???????????????????? | | ?????????????## ? ????????????????????? | | ???????????????????## ##### ####????????????? | | ???????????????????### @ ##########????????????? | | ????????????????????## ##????????????? | | ????????????????????##### g ##????????????? | | ????????????????????##### ##### ##????????????? | | ??????????????????????## ##### ##????????????? | | ??????????????????????## ###?## ##????????????? | | ??????????????????????## #####?## # ????????????? | | ??????????????????????#######??## ##????????????? | | ??????????????????????####?????## ##????????????? | | ????????????????????#####??????## ##????????????? | | ???????????????????#######???#### ##????????????? | | ???????????????????### ####?##### ##????????????? | | ???????????? #####?## ####### ##????????????? | | ???????????? ######## ##### #######????????? | | ????????????## ##### ## ########???????? | | ????????????## ### % ###???????? | | ????????????## ## ##???????? | | ???????? ##### ####### ###??????? | | ??????? ###### ####### ###?????? | | ???????### ##?????? ##?????? | | ???????## ###?????? ?????? | | #??????## ##### ###??????? ???? | | ##?????## ######### ##??????? ?? | | ##????### ###?##### ##???????### ? | | ##???#### ##??## ##???????### ? | +----------------------------------------------------+ Best States ------------- Heat Dissipation 28 Energy Generation 10 Energy Capacity 250 Matter Stores 300 Matter Capacity 300 Sight Range 18 Robot Scan Range 14 Terrain Scan Density 10 Resistance: KI 20 Resistance: TH 20 Resistance: EX 20 Resistance: EM 20 Resistance: I 20 Resistance: S 20 Resistance: P 20 Evasion (%) 62 Offensive Hacking 10 Item Schematics ----------------- Imp. Titanium Leg | -7/Zion | Archive Robot Schematics ------------------ None Fabricated ------------ Nothing Alien Tech Used ----------------- None Achievements -------------- Robot Respite The One Tourist Use The Force Challenges ------------ None Game ------ Seed GhostSwarmMachine Manual? 0 Play Time 00:46:52 Cumulative 1.2 hours Start 2024.04.02 @ 07:47:55 End 2024.04.02 @ 08:34:02 Sessions 1 Manual Loads 0 Difficulty Adventurer Special Mode None Game No. 2 Rogue 0 Adventurer 2 Explorer 0 Win Type - Total 0 Types 0/0/0/0/0/0/0/0/0 Lore% 2 Gallery% 2 Achievement% 3 Wizard Run 0 Options --------- Layout 1 ASCII 0 Keyboard 0 Movement Arrows Keybinds 0 Fullscreen 1 Font 24/Smallcaps Map View 50x35 Zoom Use 0% Tactical HUD 1 Map Filters NONE Filters NONE Steam 1 RUN: c547e45a-360c-4434-ad07-77166a836045